fUSD/lending_fUSD_20241106
["ID","MTS","AMOUNT","RATE_DAILY","PERIOD"]
[341461469,1730908246269,-514.82,0.00035616,7]
[341461471,1730908246279,-500.0,0.00035616,7]
[341461473,1730908246288,-500.0,0.00035616,7]
[341461475,1730908246298,-500.0,0.00035616,7]
[341461477,1730908246308,-500.0,0.00035616,7]
[341461479,1730908246319,-500.0,0.00035616,7]
[341461481,1730908246329,-500.0,0.00035616,7]
[341461483,1730908246339,-500.0,0.00035616,7]
[341461485,1730908246348,-534.41,0.00035616,7]
[341461487,1730908246358,-505.12999105,0.00035616,7]
[341461489,1730908246368,-500.0,0.00035616,7]
[341461491,1730908246379,-515.25826922,0.00035616,7]
[341461493,1730908246394,-500.0,0.00035616,7]
[341461495,1730908246403,-500.0,0.00035616,7]
[341461497,1730908246413,-500.0,0.00035616,7]
[341461499,1730908246423,-1453.08,0.00035616,7]
[341461501,1730908246433,-500.0,0.00035616,7]
[341461503,1730908246443,-560.86008272,0.00035616,7]
[341461505,1730908246454,-545.91195667,0.00035616,7]
[341461507,1730908246464,-500.0,0.00035616,7]
[341461509,1730908246475,-500.0,0.00035616,7]
[341461511,1730908246485,-500.0,0.00035616,7]
[341461513,1730908246495,-500.0,0.00035616,7]
[341461515,1730908246505,-500.0,0.00035616,7]
[341461517,1730908246515,-500.0,0.00035616,7]
[341461519,1730908246526,-500.0,0.00035616,7]
[341461521,1730908246537,-500.0,0.00035616,7]
[341461523,1730908246547,-849.69,0.00035616,7]
[341461525,1730908246557,-500.0,0.00035616,7]
[341461527,1730908246568,-500.0,0.00035616,7]
[341461528,1730908246577,-500.0,0.00035616,7]
[341461531,1730908246587,-500.0,0.00035616,7]
[341461533,1730908246597,-500.0,0.00035616,7]
[341461535,1730908246607,-500.0,0.00035616,7]
[341461537,1730908246617,-500.0,0.00035616,7]
[341461539,1730908246627,-962.98,0.00035616,7]
[341461541,1730908246642,-500.0,0.00035616,7]
[341461543,1730908246652,-500.0,0.00035616,7]
[341461545,1730908246662,-500.0,0.00035616,7]
[341461547,1730908246672,-500.0,0.00035616,7]
[341461549,1730908246683,-500.0,0.00035616,7]
[341461550,1730908246693,-500.0,0.00035616,7]
[341461552,1730908246703,-500.0,0.00035616,7]
[341461554,1730908246714,-500.0,0.00035616,7]
[341461556,1730908246724,-500.0,0.00035616,7]
[341461558,1730908246735,-500.0,0.00035616,7]
[341461560,1730908246744,-1411.63,0.00035616,7]
[341461562,1730908246754,-151.0,0.00035616,7]
[341461564,1730908246764,-151.0,0.00035616,7]
[341461566,1730908246774,-500.0,0.00035616,7]
[341461568,1730908246783,-151.0,0.00035616,7]
[341461570,1730908246793,-151.0,0.00035616,7]
[341461572,1730908246803,-500.0,0.00035616,7]
[341461574,1730908246813,-151.0,0.00035616,7]
[341461576,1730908246823,-500.0,0.00035616,7]
[341461578,1730908246833,-500.0,0.00035616,7]
[341461580,1730908246843,-500.0,0.00035616,7]
[341461582,1730908246853,-284.2987214,0.00035616,7]
[341461584,1730908246863,-500.0,0.00035616,7]
[341461586,1730908246872,-151.0,0.00035616,7]
[341461589,1730908246882,-500.0,0.00035616,7]
[341461590,1730908246894,-151.0,0.00035616,7]
[341461593,1730908246904,-500.0,0.00035616,7]
[341461595,1730908246914,-151.0,0.00035616,7]
[341461597,1730908246924,-151.0,0.00035616,7]
[341461599,1730908246934,-578.12,0.00035616,7]
[341461601,1730908246944,-256.408637,0.00035616,7]
[341461603,1730908246954,-1439.35,0.00035616,7]
[341461605,1730908246964,-500.0,0.00035616,7]
[341461607,1730908246974,-500.0,0.00035616,7]
[341461609,1730908246984,-500.0,0.00035616,7]
[341461611,1730908246994,-500.0,0.00035616,7]
[341461613,1730908247004,-500.0,0.00035616,7]
[341461615,1730908247014,-2649.36,0.00035616,7]
[341461617,1730908247023,-500.0,0.00035616,7]
[341461619,1730908247033,-500.0,0.00035616,7]
[341461621,1730908247043,-500.0,0.00035616,7]
[341461623,1730908247053,-500.0,0.00035616,7]
[341461625,1730908247062,-500.0,0.00035616,7]
[341461627,1730908247072,-1454.53,0.00035616,7]
[341461628,1730908247082,-500.0,0.00035616,7]
[341461630,1730908247092,-500.0,0.00035616,7]
[341461633,1730908247103,-500.0,0.00035616,7]
[341461635,1730908247113,-500.0,0.00035616,7]
[341461637,1730908247122,-500.0,0.00035616,7]
[341461639,1730908247133,-177.16,0.00035616,7]
[341461641,1730908247145,-500.0,0.00035616,7]
[341461642,1730908247155,-500.0,0.00035616,7]
[341461644,1730908247164,-500.0,0.00035616,7]
[341461646,1730908247174,-500.0,0.00035616,7]
[341461648,1730908247184,-500.0,0.00035616,7]
[341461650,1730908247193,-500.0,0.00035616,7]
[341461652,1730908247203,-500.0,0.00035616,7]
[341461654,1730908247213,-500.0,0.00035616,7]
[341461656,1730908247223,-500.0,0.00035616,7]
[341461658,1730908247234,-501.42691483,0.00035616,7]
[341461660,1730908247244,-2017.79,0.00035616,7]
[341461662,1730908247254,-500.0,0.00035616,7]
[341461664,1730908247264,-1000.0,0.00035616,10]
[341461666,1730908247274,-500.0,0.00035616,7]
[341461668,1730908247284,-500.0,0.00035616,7]
[341461670,1730908247294,-1150.12,0.00035616,7]
[341461672,1730908247303,-500.0,0.00035616,7]
[341461674,1730908247313,-500.0,0.00035616,7]
[341461676,1730908247322,-500.0,0.00035616,7]
[341461678,1730908247333,-500.0,0.00035616,7]
[341461680,1730908247342,-500.0,0.00035616,7]
[341461682,1730908247353,-500.0,0.00035616,7]
[341461684,1730908247363,-513.21830519,0.00035616,7]
[341461686,1730908247373,-500.0,0.00035616,7]
[341461688,1730908247384,-500.0,0.00035616,7]
[341461691,1730908247395,-500.0,0.00035616,7]
[341461693,1730908247405,-514.53198558,0.00035616,7]
[341461695,1730908247415,-500.0,0.00035616,7]
[341461697,1730908247425,-500.0,0.00035616,7]
[341461699,1730908247436,-500.0,0.00035616,7]
[341461701,1730908247446,-500.0,0.00035616,7]
[341461703,1730908247455,-500.0,0.00035616,7]
[341461705,1730908247465,-1740.64,0.00035616,7]
[341461707,1730908247475,-500.0,0.00035616,7]
[341461709,1730908247484,-500.0,0.00035616,7]
[341461711,1730908247494,-500.0,0.00035616,7]
[341461713,1730908247504,-500.0,0.00035616,7]
[341461715,1730908247513,-500.0,0.00035616,7]
[341461717,1730908247523,-500.0,0.00035616,7]
[341461719,1730908247533,-500.0,0.00035616,7]
[341461721,1730908247543,-718.68,0.00035616,7]
[341461723,1730908247553,-500.0,0.00035616,7]
[341461725,1730908247563,-500.0,0.00035616,7]
[341461727,1730908247572,-500.0,0.00035616,7]
[341461729,1730908247581,-500.0,0.00035616,7]
[341461731,1730908247592,-1576.79,0.00035616,7]
[341461733,1730908247602,-2391.51,0.00035616,7]
[341461735,1730908247612,-500.0,0.00035616,7]
[341461738,1730908247622,-500.0,0.00035616,7]
[341461739,1730908247635,-240.414135,0.00035616,7]
[341461741,1730908247650,-500.0,0.00035616,7]
[341461744,1730908247660,-500.0,0.00035616,7]
[341461746,1730908247670,-2456.42,0.00035616,7]
[341461748,1730908247680,-500.0,0.00035616,7]
[341461750,1730908247690,-500.0,0.00035616,7]
[341461751,1730908247700,-549.34,0.00035616,7]
[341461752,1730908247712,-500.0,0.00035616,7]
[341461753,1730908247722,-500.0,0.00035616,7]
[341461754,1730908247732,-503.55468981,0.00035616,7]
[341461755,1730908247742,-500.0,0.00035616,7]
[341461756,1730908247752,-675.03,0.00035616,7]
[341461757,1730908247762,-267.47183189,0.00035616,7]
[341461758,1730908247773,-500.0,0.00035616,7]
[341461759,1730908247782,-500.0,0.00035616,7]
[341461760,1730908247792,-500.0,0.00035616,7]
[341461761,1730908247803,-500.0,0.00035616,7]
[341461762,1730908247813,-500.0,0.00035616,7]
[341461763,1730908247823,-500.0,0.00035616,7]
[341461765,1730908247833,-500.0,0.00035616,7]
[341461767,1730908247843,-500.0,0.00035616,7]
[341461769,1730908247853,-500.0,0.00035616,7]
[341461771,1730908247863,-500.0,0.00035616,7]
[341461773,1730908247873,-500.0,0.00035616,7]
[341461775,1730908247883,-1539.78,0.00035616,7]
[341461777,1730908247896,-500.0,0.00035616,7]
[341461779,1730908247906,-1319.28,0.00035616,7]
[341461780,1730908247916,-500.0,0.00035616,7]
[341461781,1730908247926,-506.72416836,0.00035616,7]
[341461782,1730908247936,-500.0,0.00035616,7]
[341461783,1730908247946,-500.0,0.00035616,7]
[341461784,1730908247957,-500.0,0.00035616,7]
[341461785,1730908247967,-500.0,0.00035616,7]
[341461786,1730908247977,-500.0,0.00035616,7]
[341461787,1730908247987,-500.0,0.00035616,7]
[341461788,1730908247997,-500.0,0.00035616,7]
[341461790,1730908248007,-513.35129131,0.00035616,7]
[341461792,1730908248017,-500.0,0.00035616,7]
[341461794,1730908248027,-521.69,0.00035616,7]
[341461796,1730908248037,-500.0,0.00035616,7]
[341461798,1730908248048,-1100.93,0.00035616,7]
[341461800,1730908248057,-500.0,0.00035616,7]
[341461802,1730908248067,-514.56975544,0.00035616,7]
[341461804,1730908248077,-520.65105697,0.00035616,7]
[341461806,1730908248087,-500.0,0.00035616,7]
[341461808,1730908248097,-1934.68,0.00035616,7]
[341461810,1730908248107,-504.64830075,0.00035616,7]
[341461812,1730908248120,-500.0,0.00035616,7]
[341461814,1730908248131,-500.0,0.00035616,7]
[341461816,1730908248142,-500.0,0.00035616,7]
[341461818,1730908248153,-500.0,0.00035616,7]
[341461819,1730908248163,-510.48993808,0.00035616,7]
[341461820,1730908248174,-500.0,0.00035616,7]
[341461821,1730908248184,-500.0,0.00035616,7]
[341461822,1730908248194,-500.0,0.00035616,7]
[341461823,1730908248205,-500.0,0.00035616,7]
[341461824,1730908248215,-500.0,0.00035616,7]
[341461825,1730908248225,-279.68320447,0.00035616,7]
[341461826,1730908248235,-500.0,0.00035616,7]
[341461827,1730908248245,-896.88,0.00035616,7]
[341461829,1730908248255,-507.11578527,0.00035616,7]
[341461831,1730908248265,-500.0,0.00035616,7]
[341461834,1730908248275,-500.0,0.00035616,7]
[341461836,1730908248285,-500.0,0.00035616,7]
[341461838,1730908248295,-1051.61,0.00035616,7]
[341461840,1730908248305,-540.75,0.00035616,7]
[341461842,1730908248315,-500.0,0.00035616,7]
[341461844,1730908248325,-528.87556333,0.00035616,7]
[341461846,1730908248335,-500.0,0.00035616,7]
[341461847,1730908248345,-500.0,0.00035616,7]
[341461850,1730908248355,-500.0,0.00035616,7]
[341461852,1730908248365,-546.14854215,0.00035616,7]
[341461854,1730908248374,-521.35697156,0.00035616,7]
[341461856,1730908248385,-500.0,0.00035616,7]
[341461858,1730908248397,-520.7479282,0.00035616,7]
[341461860,1730908248406,-968.31,0.00035616,7]
[341461862,1730908248416,-500.0,0.00035616,7]
[341461864,1730908248425,-500.0,0.00035616,7]
[341461866,1730908248435,-500.0,0.00035616,7]
[341461868,1730908248445,-572.1,0.00035616,7]
[341461870,1730908248455,-743.82,0.00035616,7]
[341461872,1730908248465,-500.0,0.00035616,7]
[341461874,1730908248475,-500.0,0.00035616,7]
[341461876,1730908248485,-500.0,0.00035616,7]
[341461878,1730908248495,-2702.31,0.00035616,7]
[341461880,1730908248506,-500.0,0.00035616,7]
[341461882,1730908248516,-500.0,0.00035616,7]
[341461884,1730908248526,-500.0,0.00035616,7]
[341461886,1730908248537,-500.0,0.00035616,7]
[341461888,1730908248547,-954.72,0.00035616,7]
[341461890,1730908248558,-500.0,0.00035616,7]
[341461892,1730908248568,-500.0,0.00035616,7]
[341461894,1730908248578,-500.0,0.00035616,7]
[341461896,1730908248588,-500.0,0.00035616,7]
[341461898,1730908248597,-1867.09,0.00035616,7]
[341461900,1730908248607,-948.42,0.00035616,7]
[341461902,1730908248617,-500.0,0.00035616,7]
[341461904,1730908248627,-500.0,0.00035616,7]
[341461906,1730908248643,-151.0,0.00035616,7]
[341461908,1730908248653,-151.0,0.00035616,7]
[341461910,1730908248663,-151.0,0.00035616,7]
[341461912,1730908248673,-151.0,0.00035616,7]
[341461937,1730908248684,-151.0,0.00035616,7]
[341461942,1730908248951,-500.0,0.00035616,7]
[341461944,1730908248970,-2876.92,0.00035616,7]
[341461946,1730908248979,-500.0,0.00035616,7]
[341461948,1730908248989,-500.0,0.00035616,7]
[341461950,1730908248999,-297.591272,0.00035616,7]
[341461952,1730908249009,-500.0,0.00035616,7]
[341461954,1730908249019,-151.0,0.00035616,7]
[341461956,1730908249028,-500.0,0.00035616,7]
[341461958,1730908249038,-993.23,0.00035616,7]
[341461960,1730908249048,-797.86,0.00035616,7]
[341461962,1730908249057,-500.0,0.00035616,7]
[341461964,1730908249067,-508.69209601,0.00035616,7]
[341461966,1730908249077,-500.0,0.00035616,7]
[341461968,1730908249087,-2000.0,0.00035616,7]
[341461970,1730908249097,-614.39,0.00035616,7]
[341461972,1730908249106,-500.0,0.00035616,7]
[341461974,1730908249115,-500.0,0.00035616,7]
[341461976,1730908249125,-737.38,0.00035616,7]
[341461978,1730908249135,-500.0,0.00035616,7]
[341461980,1730908249150,-510.66831347,0.00035616,7]
[341461982,1730908249161,-500.00013565,0.00035616,7]
[341461984,1730908249172,-510.30775292,0.00035616,7]
[341461986,1730908249182,-1196.3,0.00035616,7]
[341461987,1730908249192,-1271.82,0.00035616,7]
[341461989,1730908249201,-500.0,0.00035616,7]
[341461991,1730908249211,-1240.52,0.00035616,7]
[341461993,1730908249220,-500.0,0.00035616,7]
[341461994,1730908249230,-500.0,0.00035616,7]
[341461996,1730908249241,-504.57351437,0.00035616,7]
[341461998,1730908249250,-500.0,0.00035616,7]
[341462000,1730908249260,-500.0,0.00035616,7]
[341462002,1730908249270,-518.37482785,0.00035616,7]
[341462003,1730908249280,-500.0,0.00035616,7]
[341462005,1730908249290,-500.0,0.00035616,7]
[341462007,1730908249300,-500.0,0.00035616,7]
[341462008,1730908249310,-500.0,0.00035616,7]
[341462010,1730908249320,-253.62936314,0.00035616,7]
[341462012,1730908249330,-623.07,0.00035616,7]
[341462014,1730908249340,-500.0,0.00035616,7]
[341462016,1730908249350,-500.0,0.00035616,7]
[341462017,1730908249360,-1344.58,0.00035616,7]
[341462019,1730908249370,-500.0,0.00035616,7]
[341462021,1730908249380,-515.81268623,0.00035616,7]
[341462023,1730908249390,-1655.26,0.00035616,7]
[341462024,1730908249402,-500.0,0.00035616,7]
[341462026,1730908249412,-831.14,0.00035616,7]
[341462028,1730908249422,-535.19210736,0.00035616,7]
[341462030,1730908249432,-566.35,0.00035616,7]
[341462032,1730908249441,-500.0,0.00035616,7]
[341462033,1730908249451,-580.52,0.00035616,7]
[341462035,1730908249460,-500.0,0.00035616,7]
[341462037,1730908249471,-500.0,0.00035616,7]
[341462039,1730908249480,-500.0,0.00035616,7]
[341462041,1730908249490,-500.0,0.00035616,7]
[341462042,1730908249500,-500.0,0.00035616,7]
[341462044,1730908249510,-500.0,0.00035616,7]
[341462046,1730908249519,-500.0,0.00035616,7]
[341462048,1730908249529,-500.0,0.00035616,7]
[341462049,1730908249539,-708.09,0.00035616,7]
[341462051,1730908249549,-530.96610281,0.00035616,7]
[341462053,1730908249560,-500.0,0.00035616,7]
[341462055,1730908249570,-500.0,0.00035616,7]
[341462056,1730908249579,-513.62877606,0.00035616,7]
[341462058,1730908249589,-500.0,0.00035616,7]
[341462060,1730908249599,-500.0,0.00035616,7]
[341462062,1730908249609,-500.0,0.00035616,7]
[341462064,1730908249619,-500.0,0.00035616,7]
[341462066,1730908249629,-500.0,0.00035616,7]
[341462067,1730908249643,-500.0,0.00035616,7]
[341462069,1730908249653,-500.0,0.00035616,7]
[341462071,1730908249663,-786.77,0.00035616,7]
[341462073,1730908249673,-525.05467817,0.00035616,7]
[341462075,1730908249683,-899.8,0.00035616,7]
[341462076,1730908249693,-500.0,0.00035616,7]
[341462078,1730908249703,-500.0,0.00035616,7]
[341462080,1730908249717,-500.0,0.00035616,7]
[341462082,1730908249727,-500.0,0.00035616,7]
[341462084,1730908249737,-383.91575583,0.00035616,7]
[341462097,1730908250202,-153.18424417,0.00035616,7]
[341462098,1730908250212,-500.0,0.00035616,7]
[341462099,1730908250222,-500.0,0.00035616,7]
[341462100,1730908250231,-470.0396391,0.00035616,7]
[341462101,1730908250241,-500.0,0.00035616,7]
[341462102,1730908250251,-527.90010359,0.00035616,7]
[341462103,1730908250261,-500.0,0.00035616,7]
[341462104,1730908250270,-500.0,0.00035616,7]
[341462105,1730908250279,-500.0,0.00035616,7]
[341462106,1730908250289,-500.0,0.00035616,7]
[341462107,1730908250298,-500.0,0.00035616,7]
[341462108,1730908250308,-532.25,0.00035616,7]
[341462109,1730908250317,-526.10800257,0.00035616,7]
[341462110,1730908250326,-500.0,0.00035616,7]
[341462111,1730908250336,-1697.5,0.00035616,7]
[341462112,1730908250345,-1132.21,0.00035616,7]
[341462113,1730908250354,-500.0,0.00035616,7]
[341462114,1730908250364,-1856.83,0.00035616,7]
[341462115,1730908250374,-500.0,0.00035616,7]
[341462116,1730908250383,-517.91150627,0.00035616,7]
[341462117,1730908250395,-500.0,0.00035616,7]
[341462118,1730908250405,-500.0,0.00035616,7]
[341462119,1730908250415,-532.14703685,0.00035616,7]
[341462120,1730908250424,-500.0,0.00035616,7]
[341462121,1730908250434,-500.0,0.00035616,7]
[341462122,1730908250444,-513.49,0.00035616,7]
[341462123,1730908250460,-500.0,0.00035616,7]
[341462124,1730908250469,-500.0,0.00035616,7]
[341462125,1730908250479,-510.66346132,0.00035616,7]
[341462126,1730908250489,-1332.16,0.00035616,7]
[341462127,1730908250498,-523.70272049,0.00035616,7]
[341462128,1730908250507,-1775.56,0.00035616,7]
[341462129,1730908250516,-500.0,0.00035616,7]
[341462130,1730908250526,-500.0,0.00035616,7]
[341462131,1730908250535,-500.0,0.00035616,7]
[341462132,1730908250545,-234.06035618,0.00035616,7]
[341462133,1730908250556,-500.0,0.00035616,7]
[341462134,1730908250566,-546.68341819,0.00035616,7]
[341462135,1730908250576,-500.0,0.00035616,7]
[341462136,1730908250585,-500.0,0.00035616,7]
[341462137,1730908250594,-500.0,0.00035616,7]
[341462138,1730908250604,-500.0,0.00035616,7]
[341462139,1730908250613,-2132.58,0.00035616,7]
[341462140,1730908250623,-500.0,0.00035616,7]
[341462141,1730908250633,-500.0,0.00035616,7]
[341462142,1730908250646,-842.56,0.00035616,7]
[341462143,1730908250655,-500.0,0.00035616,7]
[341462144,1730908250665,-738.24,0.00035616,7]
[341462145,1730908250676,-514.84948176,0.00035616,7]
[341462146,1730908250685,-500.0,0.00035616,7]
[341462147,1730908250697,-674.11,0.00035616,7]
[341462148,1730908250706,-500.0,0.00035616,7]
[341462149,1730908250717,-830.17,0.00035616,7]
[341462150,1730908250727,-500.0,0.00035616,7]
[341462151,1730908250736,-1063.62,0.00035616,7]
[341462152,1730908250746,-1443.19,0.00035616,7]
[341462153,1730908250755,-500.0,0.00035616,7]
[341462154,1730908250764,-500.0,0.00035616,7]
[341462155,1730908250773,-500.0,0.00035616,7]
[341462156,1730908250783,-500.0,0.00035616,7]
[341462157,1730908250793,-500.0,0.00035616,7]
[341462158,1730908250802,-500.0,0.00035616,7]
[341462159,1730908250812,-621.55840854,0.00035616,7]
[341462160,1730908250821,-499.66170534,0.00035616,7]
[341462161,1730908250830,-1642.45,0.00035616,7]
[341462162,1730908250840,-1255.78,0.00035616,7]
[341462163,1730908250851,-500.0,0.00035616,7]
[341462164,1730908250861,-500.0,0.00035616,7]
[341462165,1730908250871,-532.64528988,0.00035616,7]
[341462166,1730908250880,-537.59832235,0.00035616,7]
[341462167,1730908250889,-500.0,0.00035616,7]
[341462168,1730908250901,-500.0,0.00035616,7]
[341462169,1730908250910,-512.50458986,0.00035616,7]
[341462170,1730908250919,-553.13484118,0.00035616,7]
[341462171,1730908250928,-1263.55,0.00035616,7]
[341462172,1730908250938,-500.0,0.00035616,7]
[341462173,1730908250947,-618.47687195,0.00035616,7]
[341462174,1730908250957,-500.0,0.00035616,7]
[341462175,1730908250967,-500.0,0.00035616,7]
[341462176,1730908250976,-500.0,0.00035616,7]
[341462177,1730908250987,-500.0,0.00035616,7]
[341462178,1730908250996,-151.0,0.00035616,7]
[341462179,1730908251006,-500.0,0.00035616,7]
[341462180,1730908251015,-502.98149555,0.00035616,7]
[341462181,1730908251025,-518.81924414,0.00035616,7]
[341462182,1730908251034,-151.0,0.00035616,7]
[341462183,1730908251043,-151.0,0.00035616,7]
[341462184,1730908251053,-151.0,0.00035616,7]
[341462185,1730908251062,-151.0,0.00035616,7]
[341462186,1730908251071,-500.0,0.00035616,7]
[341462187,1730908251081,-500.0,0.00035616,7]
[341462188,1730908251090,-500.0,0.00035616,7]
[341462189,1730908251100,-500.0,0.00035616,7]
[341462190,1730908251173,-544.93,0.00035616,7]
[341462191,1730908251183,-500.0,0.00035616,7]
[341462192,1730908251192,-532.97286093,0.00035616,7]
[341462193,1730908251201,-500.0,0.00035616,7]
[341462194,1730908251210,-500.0,0.00035616,7]
[341462195,1730908251219,-500.0,0.00035616,7]
[341462196,1730908251228,-500.0,0.00035616,7]
[341462197,1730908251237,-568.06340935,0.00035616,7]
[341462198,1730908251247,-500.0,0.00035616,7]
[341462199,1730908251256,-677.7,0.00035616,7]
[341462200,1730908251265,-534.00332891,0.00035616,7]
[341462201,1730908251274,-500.0,0.00035616,7]
[341462202,1730908251284,-500.0,0.00035616,7]
[341462203,1730908251293,-1721.65,0.00035616,7]
[341462204,1730908251302,-500.0,0.00035616,7]
[341462205,1730908251311,-533.88025394,0.00035616,7]
[341462206,1730908251320,-526.95665571,0.00035616,7]
[341462207,1730908251328,-500.0,0.00035616,7]
[341462208,1730908251337,-682.14,0.00035616,7]
[341462209,1730908251346,-500.0,0.00035616,7]
[341462210,1730908251355,-500.0,0.00035616,7]
[341462211,1730908251364,-500.0,0.00035616,7]
[341462212,1730908251373,-500.0,0.00035616,7]
[341462213,1730908251382,-500.0,0.00035616,7]
[341462214,1730908251391,-500.0,0.00035616,7]
[341462215,1730908251402,-500.0,0.00035616,7]
[341462216,1730908251411,-500.0,0.00035616,7]
[341462217,1730908251420,-496.0432514,0.00035616,7]
[341462218,1730908251429,-541.80391968,0.00035616,7]
[341462219,1730908251438,-712.29,0.00035616,7]
[341462220,1730908251447,-1891.76,0.00035616,7]
[341462221,1730908251456,-623.73,0.00035616,7]
[341462222,1730908251466,-540.32103823,0.00035616,7]
[341462223,1730908251475,-2438.21,0.00035616,7]
[341462224,1730908251485,-500.0,0.00035616,7]
[341462225,1730908251494,-324.90196811,0.00035616,7]
[341462226,1730908251503,-500.0,0.00035616,7]
[341462227,1730908251513,-500.0,0.00035616,7]
[341462228,1730908251522,-803.78,0.00035616,7]
[341462229,1730908251531,-500.0,0.00035616,7]
[341462230,1730908251540,-526.26318261,0.00035616,7]
[341462231,1730908251549,-500.0,0.00035616,7]
[341462232,1730908251558,-500.0,0.00035616,7]
[341462233,1730908251567,-500.0,0.00035616,7]
[341462234,1730908251576,-500.0,0.00035616,7]
[341462235,1730908251586,-500.0,0.00035616,7]
[341462236,1730908251595,-500.0,0.00035616,7]
[341462237,1730908251604,-500.0,0.00035616,7]
[341462238,1730908251613,-666.02,0.00035616,7]
[341462239,1730908251622,-661.96,0.00035616,7]
[341462240,1730908251632,-710.77,0.00035616,7]
[341462241,1730908251646,-500.0,0.00035616,7]
[341462242,1730908251656,-500.0,0.00035616,7]
[341462243,1730908251665,-500.79136264,0.00035616,7]
[341462244,1730908251675,-500.0,0.00035616,7]
[341462245,1730908251686,-500.0,0.00035616,7]
[341462246,1730908251695,-500.0,0.00035616,7]
[341462247,1730908251704,-500.0,0.00035616,7]
[341462248,1730908251715,-536.17372969,0.00035616,7]
[341462249,1730908251724,-1196.9,0.00035616,7]
[341462250,1730908251733,-694.33,0.00035616,7]
[341462251,1730908251743,-500.0,0.00035616,7]
[341462252,1730908251752,-658.16,0.00035616,7]
[341462253,1730908251762,-151.0,0.00035616,7]
[341462254,1730908251772,-500.0,0.00035616,7]
[341462255,1730908251781,-500.0,0.00035616,7]
[341462256,1730908251790,-500.0,0.00035616,7]
[341462257,1730908251799,-500.0,0.00035616,7]
[341462258,1730908251808,-705.36,0.00035616,7]
[341462259,1730908251818,-500.0,0.00035616,7]
[341462260,1730908251827,-299.8951,0.00035616,7]
[341462261,1730908251836,-502.3139858,0.00035616,7]
[341462262,1730908251846,-500.0,0.00035616,7]
[341462263,1730908251857,-299.8951,0.00035616,7]
[341462264,1730908251867,-299.8951,0.00035616,7]
[341462265,1730908251876,-299.8951,0.00035616,7]
[341462266,1730908251885,-299.8951,0.00035616,7]
[341462267,1730908251898,-500.0,0.00035616,7]
[341462268,1730908251907,-500.0,0.00035616,7]
[341462269,1730908251916,-500.0,0.00035616,7]
[341462270,1730908251926,-500.0,0.00035616,7]
[341462271,1730908251935,-460.6616178,0.00035616,7]
[341462272,1730908251945,-299.8951,0.00035616,7]
[341462273,1730908251954,-299.8951,0.00035616,7]
[341462274,1730908251963,-151.0,0.00035616,7]
[341462275,1730908251972,-500.0,0.00035616,7]
[341462276,1730908251982,-500.0,0.00035616,7]
[341462277,1730908251991,-548.168613,0.00035616,7]
[341462278,1730908252000,-151.0,0.00035616,7]
[341462279,1730908252010,-151.0,0.00035616,7]
[341462280,1730908252019,-500.0,0.00035616,7]